Workbook

Sheet beregn (hidden)
C2: Før | E2: Efter
P3: Krydsveksler
B4: Ind | C4: =data!C5 -> 252 | E4: =data!D5 -> 230 | P4: Modstrømsveksler
P5: Roterende veksler
B6: Ud | C6: =data!C10 -> 252 | E6: =data!D10 -> 230
B8: Eta | C8: =data!C13/100 -> 0.625 | E8: =data!D13/100 -> 0.6111111111 | P8: 3
B11: Function eps(n, NTU, Z, Zm)
B13: Reference | G13: Drift
B15: n =20 | C15: 20 | G15: n =20 | H15: 20
B17: NTU | C17: =data!L4 -> 2.293547966 | G17: NTU | H17: =H26/((E4/3600)*1.2*1.005*1000) -> 2.35727168
B19: Z | C19: =C4/C6 -> 1 | G19: Z | H19: =E4/E6 -> 1
B21: Zm | C21: 1 | G21: Zm | H21: 1
B23: EPS | C23: =IF(P8=1,epscrex(C15,C17,C19),IF(P8=2,epscount(C17,C19),IF(P8=3,epsrot(C17,C19,C21)))) -> 0.6249999471 | D23: =C8 -> 0.625 | E23: =(D23-C23)*10000 -> 0.0005293612171 | G23: EPS | H23: =IF(P8=1,epscrex(H15,H17,H19),IF(P8=2,epscount(H17,H19),IF(P8=3,epsrot(H17,H19,H21)))) -> 0.62967364
B26: UA | C26: =(((C4/3600)*1.2*1.005)*1000)*C17 -> 193.6213193 | D26: W/K | G26: UA | H26: =1/((1/H28)+(1/H30)) -> 181.6277829 | I26: W/K
B28: UA1 | C28: =C26*(1+(C4/C6)^0.7) -> 387.2426386 | D28: W/K | G28: UA1 | H28: =C28*(E4/C4)^0.7 -> 363.2555659 | I28: W/K
B30: UA2 | C30: =C28*(C6/C4)^0.7 -> 387.2426386 | D30: W/K | G30: UA2 | H30: =C30*(E6/C6)^0.7 -> 363.2555659 | I30: W/K

Sheet data
C2: Datablad | D2: Målt drift | E2: Forventet drift
B3: Tindblæsning,før veksler [°C] | C3: -12 | D3: 5 | E3: =D3 -> 5
B4: Tindblæsning,efter veksler [°C] | C4: 8 | D4: 16 | E4: =(D8-D3)*E13/100+D3 -> 16.33412552 | G4: Kontrol =0 | H4: =beregn!E23 -> 0.0005293612171 | K4: NTU = | L4: 2.293547966
B5: Luftmængdeind [Nm3/h] | C5: 252 | D5: 230 | E5: =D5 -> 230
B6: Tryktabind [Pa] | C6: 50 | D6: 60 | E6: =C6*(D5/C5)^1.5 -> 43.59743584
B8: Tafkast,før veksler [°C] | C8: 20 | D8: 23 | E8: =D8 -> 23
B9: Tafkast,efter veksler [°C] | C9: 0 | D9: 12 | E9: =E8-(E4-E3)*E5/E10 -> 11.66587448
B10: Luftmængdeud [Nm3/h] | C10: 252 | D10: =D5*(D4-D3)/(D8-D9) -> 230 | E10: =D10 -> 230
B11: Tryktabud [Pa] | C11: 50 | D11: 60 | E11: =C11*(D10/C10)^1.5 -> 43.59743584
B13: Effektivitet | C13: =(C4-C3)/(C8-C3)*100 -> 62.5 | D13: =(D4-D3)/(D8-D3)*100 -> 61.11111111 | E13: =beregn!H23*100 -> 62.967364
C16: Vejledning
C17: 1. | D17: Der skal indtastes værdier i felterne med røde tal for luftflow (luftflow i Nm3/h), tryktab og temperaturer
C18: 2. | D18: Tryk på "Beregn" 2-3 gange
C21: Performancetest
C22: 1. | D22: Effektivitet | F22: Sammenlig de faktisk målte Tindblæsning,efter veksler og Tafkast,efter veksler med de værdier der er i kolonnen "Forventet drift". Hvis den faktisk målte temperatur Tindblæsning,efter veksler er lavere end værdien i kolonnen "Forventet drift" og at værdien for Tafkast,efter veksler tilsvarende er højere end forventet vekslereffektiviteten lavere end anført på databladet. Hvis det forholder sig modsat er effektiviteten bedre end anført på databladet.
C27: 2. | D27: Tryktab på luft- og væskeside | F27: Sammenlig de faktisk målte tryktab over veksleren med værdierne i kolonnen "Forventet drift". Hvis de faktisk målte tryktab er lavere end de beregnede værdier i diagrammet har fladerne lavere tryktab end anført på databladet. Hvis det forholder sig modsat er tryktabene større end anført på databladet.
